fUSD/lending_fUSD_20240125
["ID","MTS","AMOUNT","RATE_DAILY","PERIOD"]
[312728226,1706189481943,-500.0,0.00052602,31]
[312728227,1706189481952,-360.16356513,0.00052602,31]
[312728228,1706189481962,-500.0,0.00052602,14]
[312728229,1706189481972,-504.11,0.00052602,31]
[312728230,1706189481981,-500.0,0.00052602,31]
[312728231,1706189481990,-500.0,0.00052602,31]
[312728232,1706189481999,-500.0,0.00052602,31]
[312728233,1706189482009,-500.0,0.00052602,31]
[312728234,1706189482018,-394.46612915,0.00052602,31]
[312728235,1706189482027,-511.82,0.00052602,31]
[312728236,1706189482036,-230.50617653,0.00052602,31]
[312728237,1706189482045,-578.99,0.00052602,31]
[312728238,1706189482056,-732.03,0.00052602,31]
[312728239,1706189482065,-500.0,0.00052602,2]
[312728240,1706189482075,-662.95,0.00052602,31]
[312728241,1706189482085,-500.0,0.00052602,31]
[312728242,1706189482098,-500.0,0.00052602,31]
[312728243,1706189482109,-500.0,0.00052602,31]
[312728244,1706189482118,-500.0,0.00052602,31]
[312728245,1706189482128,-500.0,0.00052602,31]
[312728246,1706189482138,-500.0,0.00052602,31]
[312728247,1706189482148,-500.0,0.00052602,31]
[312728248,1706189482160,-500.0,0.00052602,31]
[312728249,1706189482170,-500.0,0.00052602,31]
[312728250,1706189482180,-706.68,0.00052602,31]
[312728251,1706189482191,-500.0,0.00052602,31]
[312728252,1706189482201,-500.0,0.00052602,31]
[312728253,1706189482211,-500.0,0.00052602,31]
[312728254,1706189482221,-511.95,0.00052602,31]
[312728255,1706189482230,-456.23767689,0.00052602,31]
[312728256,1706189482239,-158.34164632,0.00052602,31]
[312728257,1706189482248,-500.0,0.00052602,31]
[312728258,1706189482258,-217.83087152,0.00052602,31]
[312728259,1706189482267,-500.0,0.00052602,31]
[312728260,1706189482277,-367.22234411,0.00052602,31]
[312728261,1706189482286,-500.0,0.00052602,31]
[312728262,1706189482295,-545.53536126,0.00052602,31]
[312728263,1706189482305,-500.0,0.00052602,31]
[312728264,1706189482314,-500.0,0.00052602,31]
[312728265,1706189482323,-500.0,0.00052602,31]
[312728266,1706189482332,-586.25,0.00052602,31]
[312728267,1706189482344,-618.35627196,0.00052602,31]
[312728268,1706189482353,-500.0,0.00052602,31]
[312728269,1706189482362,-500.0,0.00052602,31]
[312728270,1706189482372,-500.0,0.00052602,31]
[312728271,1706189482384,-847.89,0.00052602,31]
[312728272,1706189482393,-500.0,0.00052602,31]
[312728273,1706189482403,-847.27,0.00052602,31]
[312728274,1706189482413,-553.41,0.00052602,2]
[312728275,1706189482423,-500.0,0.00052602,31]
[312728276,1706189482433,-500.0,0.00052602,31]
[312728277,1706189482443,-552.54,0.00052602,31]
[312728278,1706189482452,-500.0,0.00052602,31]
[312728279,1706189482462,-500.0,0.00052602,31]
[312728280,1706189482471,-500.0,0.00052602,10]
[312728281,1706189482482,-306.54020834,0.00052602,31]
[312728282,1706189482491,-533.04,0.00052602,31]
[312728283,1706189482501,-500.0,0.00052602,31]
[312728284,1706189482511,-500.0,0.00052602,31]
[312728285,1706189482522,-260.13411622,0.00052602,31]
[312728286,1706189482532,-500.0,0.00052602,31]
[312728287,1706189482542,-1263.99,0.00052602,31]
[312728288,1706189482551,-500.0,0.00052602,31]
[312728289,1706189482560,-462.9782576,0.00052602,31]
[312728290,1706189482906,-500.0,0.00049315,2]
[312728291,1706189482916,-500.0,0.00049315,31]
[312728292,1706189482925,-500.0,0.00049589,2]
[312728293,1706189482935,-500.0,0.00049863,31]
[312728294,1706189482944,-500.0,0.00049863,2]
[312728295,1706189482954,-500.0,0.00050136,31]
[312728296,1706189482963,-155.32646716,0.00050136,2]
[312728297,1706189482973,-500.0,0.0005041,31]
[312728298,1706189482983,-500.0,0.00050684,31]
[312728299,1706189482992,-500.0,0.00051698,120]
[312728300,1706189483002,-3780.86,0.00051699,15]
[312728301,1706189483011,-3780.86,0.00051699,15]
[312728302,1706189483021,-3780.86,0.00051699,15]
[312728303,1706189483029,-3780.86,0.00051699,15]
[312728304,1706189483039,-500.0,0.00052,120]
[312728305,1706189483049,-634.99,0.00052054,31]
[312728306,1706189483058,-500.0,0.00052301,120]
[312728307,1706189483068,-634.99,0.00052328,31]
[312728308,1706189483077,-37.0217424,0.00052602,31]
[312728309,1706189483086,-500.0,0.00052602,31]
[312728310,1706189483097,-500.0,0.00052602,31]
[312728311,1706189483106,-4443.62,0.00052602,31]
[312728312,1706189483115,-500.0,0.00052602,31]
[312728313,1706189483124,-500.0,0.00052602,31]
[312728314,1706189483134,-500.0,0.00052602,31]
[312728315,1706189483143,-5133.55,0.00052602,5]
[312728316,1706189483152,-876.57,0.00052602,31]
[312728317,1706189483162,-793.58,0.00052602,31]
[312728318,1706189483171,-500.0,0.00052602,31]
[312728319,1706189483180,-500.0,0.00052602,31]
[312728320,1706189483189,-605.29,0.00052602,31]
[312728321,1706189483199,-798.73,0.00052602,31]
[312728322,1706189483208,-500.0,0.00052602,31]
[312728323,1706189483217,-500.0,0.00052602,31]
[312728324,1706189483227,-741.46,0.00052602,31]
[312728325,1706189483236,-595.77282276,0.00052602,31]
[312728326,1706189483246,-500.0,0.00052602,31]
[312728327,1706189483256,-500.0,0.00052602,31]
[312728328,1706189483267,-522.59,0.00052602,31]
[312728329,1706189483277,-1440.42,0.00052602,31]
[312728330,1706189483287,-500.0,0.00052602,31]
[312728331,1706189483296,-3848.63,0.00052602,31]
[312728332,1706189483306,-396.23576011,0.00052602,7]
[312728333,1706189483315,-659.44,0.00052602,31]
[312728334,1706189483326,-960.66,0.00052602,31]
[312728335,1706189483336,-3294.47,0.00052602,31]
[312728336,1706189483348,-1413.54,0.00052602,31]
[312728337,1706189483357,-557.9,0.00052602,31]
[312728338,1706189483367,-500.0,0.00052602,31]
[312728339,1706189483376,-599.204854,0.00052602,31]
[312728340,1706189483387,-500.0,0.00052602,31]
[312728341,1706189483398,-500.0,0.00052602,31]
[312728342,1706189483408,-500.0,0.00052602,31]
[312728343,1706189483418,-500.0,0.00052602,31]
[312728344,1706189483427,-658.39,0.00052602,31]
[312728345,1706189483437,-500.0,0.00052602,31]
[312728346,1706189483446,-500.0,0.00052602,31]
[312728347,1706189483455,-707.38,0.00052602,31]
[312728348,1706189483465,-806.49,0.00052602,31]
[312728349,1706189483476,-534.89,0.00052602,31]
[312728350,1706189483486,-1000.0,0.00052602,7]
[312728351,1706189483495,-474.67236065,0.00052602,31]
[312728352,1706189483505,-305.85384617,0.00052602,31]
[312728353,1706189483519,-500.0,0.00052602,31]
[312728354,1706189483529,-500.0,0.00052602,31]
[312728355,1706189483539,-2660.25,0.00052602,31]
[312728356,1706189483549,-500.0,0.00052602,31]
[312728357,1706189483559,-490.71784678,0.00052602,31]
[312728358,1706189483570,-500.0,0.00052602,31]
[312728359,1706189483580,-654.66,0.00052602,31]
[312728360,1706189483591,-1220.14,0.00052602,31]
[312728361,1706189483601,-500.0,0.00052602,31]
[312728362,1706189483611,-500.0,0.00052602,31]
[312728363,1706189483624,-597.26542683,0.00052602,31]
[312728364,1706189483634,-697.52,0.00052602,31]
[312728365,1706189483644,-1219.85,0.00052602,31]
[312728366,1706189483653,-500.0,0.00052602,31]
[312728367,1706189483663,-500.0,0.00052602,31]
[312728368,1706189483672,-500.0,0.00052602,31]
[312728369,1706189483681,-2328.6,0.00052602,31]
[312728370,1706189483690,-500.0,0.00052602,31]
[312728371,1706189483700,-500.0,0.00052602,31]
[312728372,1706189483709,-553.77,0.00052602,31]
[312728373,1706189483720,-2392.7,0.00052602,31]
[312728374,1706189483729,-500.0,0.00052602,31]
[312728375,1706189483738,-742.25,0.00052602,31]
[312728376,1706189483748,-500.0,0.00052602,31]
[312728377,1706189483757,-500.0,0.00052602,31]
[312728378,1706189483766,-766.81,0.00052602,31]
[312728379,1706189483775,-571.26063246,0.00052602,31]
[312728380,1706189483785,-500.0,0.00052602,31]
[312728381,1706189483794,-500.0,0.00052602,31]
[312728382,1706189483804,-500.0,0.00052602,31]
[312728383,1706189483814,-720.22,0.00052602,31]
[312728384,1706189483823,-506.85,0.00052602,31]
[312728385,1706189483832,-2585.71,0.00052602,31]
[312728386,1706189483842,-504.68,0.00052602,31]
[312728387,1706189483851,-895.53,0.00052602,2]
[312728388,1706189483861,-500.0,0.00052602,31]
[312728389,1706189483870,-1966.47,0.00052602,30]
[312728390,1706189483879,-500.0,0.00052602,31]
[312728391,1706189483888,-571.62387716,0.00052602,31]
[312728392,1706189483898,-500.0,0.00052602,31]
[312728393,1706189483907,-568.09,0.00052602,31]
[312728394,1706189483916,-500.0,0.00052602,31]
[312728395,1706189483926,-1097.13,0.00052602,31]
[312728396,1706189483936,-563.0,0.00052602,31]
[312728397,1706189483945,-678.21,0.00052602,31]
[312728398,1706189483955,-500.0,0.00052602,31]
[312728399,1706189483965,-505.22,0.00052602,31]
[312728400,1706189483974,-1184.05,0.00052602,7]
[312728401,1706189483985,-500.0,0.00052602,31]
[312728402,1706189483996,-1978.23,0.00052602,31]
[312728403,1706189484006,-775.02,0.00052602,31]
[312728404,1706189484015,-500.0,0.00052602,31]
[312728405,1706189484025,-500.0,0.00052602,31]
[312728406,1706189484034,-500.0,0.00052602,31]
[312728407,1706189484043,-500.0,0.00052602,31]
[312728408,1706189484052,-500.0,0.00052602,31]
[312728409,1706189484061,-500.0,0.00052602,31]
[312728410,1706189484070,-563.64,0.00052602,31]
[312728411,1706189484080,-1788.81,0.00052602,31]
[312728412,1706189484089,-500.0,0.00052602,31]
[312728413,1706189484099,-824.87,0.00052602,31]
[312728414,1706189484108,-800.86,0.00052602,31]
[312728415,1706189484118,-500.0,0.00052602,31]
[312728416,1706189484128,-624.88,0.00052602,31]
[312728417,1706189484137,-500.0,0.00052602,31]
[312728418,1706189484146,-500.0,0.00052602,31]
[312728419,1706189484155,-500.0,0.00052602,31]
[312728420,1706189484165,-500.0,0.00052602,31]
[312728421,1706189484174,-500.0,0.00052602,31]
[312728422,1706189484184,-3861.01,0.00052602,5]
[312728423,1706189484193,-500.0,0.00052602,31]
[312728424,1706189484203,-500.0,0.00052602,31]
[312728425,1706189484213,-500.0,0.00052602,31]
[312728426,1706189484223,-562.52,0.00052602,31]
[312728427,1706189484232,-702.37,0.00052602,31]
[312728428,1706189484242,-500.0,0.00052602,31]
[312728429,1706189484251,-500.0,0.00052602,31]
[312728430,1706189484260,-500.0,0.00052602,31]
[312728431,1706189484269,-500.0,0.00052602,31]
[312728432,1706189484278,-500.0,0.00052602,31]
[312728433,1706189484288,-500.0,0.00052602,31]
[312728434,1706189484297,-1562.8,0.00052602,31]
[312728435,1706189484307,-241.86717509,0.00052602,31]
[312728436,1706189484316,-729.44,0.00052602,31]
[312728437,1706189484326,-674.25,0.00052602,31]
[312728438,1706189484335,-500.0,0.00052602,31]
[312728439,1706189484346,-500.0,0.00052602,31]
[312728440,1706189484356,-1360.58,0.00052602,31]
[312728441,1706189484365,-530.21,0.00052602,31]
[312728442,1706189484374,-694.83,0.00052602,2]
[312728443,1706189484383,-500.0,0.00052602,31]
[312728444,1706189484393,-500.0,0.00052602,31]
[312728445,1706189484402,-650.93,0.00052602,31]
[312728446,1706189484412,-622.63,0.00052602,31]
[312728447,1706189484421,-1172.34,0.00052602,31]
[312728448,1706189484430,-1372.24,0.00052602,31]
[312728449,1706189484440,-500.0,0.00052602,31]
[312728450,1706189484449,-500.0,0.00052602,31]
[312728451,1706189484459,-500.0,0.00052602,31]
[312728452,1706189484469,-500.0,0.00052602,31]
[312728453,1706189484478,-500.0,0.00052602,31]
[312728454,1706189484488,-1771.9,0.00052602,31]
[312728455,1706189484498,-634.99,0.00052602,31]
[312728456,1706189484507,-500.0,0.00052602,120]
[312728457,1706189484515,-504.00820256,0.00052623,24]
[312728458,1706189484525,-1823.0,0.00052685,30]
[312728459,1706189484535,-431.0,0.00052685,30]
[312728460,1706189484545,-329.0,0.00052685,30]
[312728461,1706189484554,-1001.6357,0.000527,20]
[312728462,1706189484563,-236.07718374,0.000527,120]
[312728463,1706189484573,-157.23945592,0.00052726,30]
[312728464,1706189484582,-154.23863765,0.00052735,60]
[312728465,1706189484591,-666.0,0.00052739,2]
[312728466,1706189484604,-300.0,0.00052739,120]
[312728467,1706189484614,-180.84621878,0.00052746,60]
[312728468,1706189484624,-809.83846744,0.00052784,14]
[312728469,1706189484633,-150.0,0.0005279,30]
[312728470,1706189484648,-1329.0,0.0005279,2]
[312728471,1706189484658,-349.0,0.0005279,2]
[312728472,1706189484668,-815.015926,0.00052795,14]
[312728473,1706189484679,-815.015926,0.00052795,14]
[312728474,1706189484688,-815.015926,0.00052795,14]
[312728475,1706189484698,-815.015926,0.00052795,14]
[312728476,1706189484708,-815.015926,0.00052795,14]
[312728477,1706189484718,-815.015926,0.00052795,14]
[312728478,1706189484728,-815.015926,0.00052795,14]
[312728479,1706189484737,-815.015926,0.00052795,14]
[312728480,1706189484747,-815.015926,0.00052795,14]
[312728481,1706189484756,-815.015926,0.00052795,14]
[312728482,1706189484766,-815.015926,0.00052795,14]
[312728483,1706189484775,-815.015926,0.00052795,14]
[312728484,1706189484785,-815.015926,0.00052795,14]
[312728485,1706189484794,-815.015926,0.00052795,14]
[312728486,1706189484804,-815.015926,0.00052795,14]
[312728487,1706189484814,-815.015926,0.00052795,14]
[312728488,1706189484824,-815.015926,0.00052795,14]
[312728489,1706189484833,-815.015926,0.00052795,14]
[312728490,1706189484842,-815.015926,0.00052795,14]
[312728491,1706189484855,-815.01,0.00052795,14]
[312728492,1706189484865,-331.8672487,0.00052795,14]
[312728493,1706189484875,-331.8672487,0.00052795,14]
[312728494,1706189484885,-331.8672487,0.00052795,14]
[312728495,1706189484895,-331.8672487,0.00052795,14]
[312728496,1706189484905,-331.8672487,0.00052795,14]
[312728497,1706189484915,-331.8672487,0.00052795,14]
[312728498,1706189484924,-331.8672487,0.00052795,14]
[312728499,1706189484934,-331.8672487,0.00052795,14]
[312728500,1706189484944,-331.8672487,0.00052795,14]
[312728501,1706189484953,-331.8672487,0.00052795,14]
[312728502,1706189484963,-331.8672487,0.00052795,14]
[312728503,1706189484973,-331.8672487,0.00052795,14]
[312728504,1706189484983,-331.8672487,0.00052795,14]
[312728505,1706189484994,-331.8672487,0.00052795,14]
[312728506,1706189485004,-331.8672487,0.00052795,14]
[312728507,1706189485013,-331.8672487,0.00052795,14]
[312728508,1706189485022,-331.8672487,0.00052795,14]
[312728509,1706189485032,-331.8672487,0.00052795,14]
[312728510,1706189485042,-331.8672487,0.00052795,14]
[312728511,1706189485051,-331.86,0.00052795,14]
[312728512,1706189485060,-534.4436994,0.00052795,14]
[312728513,1706189485070,-534.4436994,0.00052795,14]
[312728514,1706189485079,-534.4436994,0.00052795,14]
[312728515,1706189485088,-534.4436994,0.00052795,14]
[312728516,1706189485100,-534.4436994,0.00052795,14]
[312728517,1706189485109,-534.4436994,0.00052795,14]
[312728518,1706189485118,-534.4436994,0.00052795,14]
[312728519,1706189485127,-534.4436994,0.00052795,14]
[312728520,1706189485136,-534.4436994,0.00052795,14]
[312728521,1706189485145,-534.4436994,0.00052795,14]
[312728522,1706189485154,-534.4436994,0.00052795,14]
[312728523,1706189485164,-534.4436994,0.00052795,14]
[312728524,1706189485173,-534.4436994,0.00052795,14]
[312728525,1706189485182,-534.4436994,0.00052795,14]
[312728526,1706189485311,-534.4436994,0.00052795,14]
[312728527,1706189485323,-534.4436994,0.00052795,14]
[312728528,1706189485332,-534.4436994,0.00052795,14]
[312728529,1706189485344,-534.4436994,0.00052795,14]
[312728530,1706189485353,-534.4436994,0.00052795,14]
[312728531,1706189485362,-534.44,0.00052795,14]
[312728532,1706189485372,-666.78113121,0.00052795,14]
[312728533,1706189485381,-666.78113121,0.00052795,14]
[312728534,1706189485390,-666.78113121,0.00052795,14]
[312728535,1706189485399,-666.78113121,0.00052795,14]
[312728536,1706189485409,-666.78113121,0.00052795,14]
[312728537,1706189485418,-666.78113121,0.00052795,14]
[312728538,1706189485427,-666.78113121,0.00052795,14]
[312728539,1706189485436,-666.78113121,0.00052795,14]
[312728540,1706189485446,-666.78113121,0.00052795,14]
[312728541,1706189485456,-666.78113121,0.00052795,14]
[312728542,1706189485465,-666.78113121,0.00052795,14]
[312728543,1706189485474,-666.78113121,0.00052795,14]
[312728544,1706189485483,-666.78113121,0.00052795,14]
[312728545,1706189485492,-666.78113121,0.00052795,14]
[312728546,1706189485502,-666.78113121,0.00052795,14]
[312728547,1706189485511,-666.78113121,0.00052795,14]
[312728548,1706189485521,-666.78113121,0.00052795,14]
[312728549,1706189485530,-666.78113121,0.00052795,14]
[312728550,1706189485539,-666.78113121,0.00052795,14]
[312728551,1706189485548,-666.78,0.00052795,14]
[312728552,1706189485557,-590.54902112,0.00052795,14]
[312728553,1706189485566,-590.54902112,0.00052795,14]
[312728554,1706189485575,-590.54902112,0.00052795,14]
[312728555,1706189485585,-590.54902112,0.00052795,14]
[312728556,1706189485595,-590.54902112,0.00052795,14]
[312728557,1706189485605,-590.54902112,0.00052795,14]
[312728558,1706189485614,-590.54902112,0.00052795,14]
[312728559,1706189485627,-590.54902112,0.00052795,14]
[312728560,1706189485637,-590.54902112,0.00052795,14]
[312728561,1706189485646,-590.54902112,0.00052795,14]
[312728562,1706189485656,-590.54902112,0.00052795,14]
[312728563,1706189485667,-590.54902112,0.00052795,14]
[312728564,1706189485677,-590.54902112,0.00052795,14]
[312728565,1706189485686,-590.54902112,0.00052795,14]
[312728566,1706189485696,-590.54902112,0.00052795,14]
[312728567,1706189485707,-590.54902112,0.00052795,14]
[312728568,1706189485717,-590.54902112,0.00052795,14]
[312728569,1706189485726,-590.54902112,0.00052795,14]
[312728570,1706189485736,-590.54902112,0.00052795,14]
[312728571,1706189485747,-590.54,0.00052795,14]
[312728572,1706189485756,-533.97088869,0.000528,30]
[312728573,1706189485766,-1419.0,0.000528,120]
[312728574,1706189485775,-832.27573461,0.00052865,2]
[312728575,1706189485786,-453.0,0.00052868,30]
[312728576,1706189485796,-151.0,0.00052868,30]
[312728577,1706189485807,-190358.75650281,0.00052868,30]
[312728578,1706189485827,-1260.16016152,0.00052868,30]
[312728579,1706189485840,-4056.99088324,0.00052868,30]
[312728580,1706189486063,-500.0,0.00049589,31]
[312728581,1706189486073,-500.0,0.00049863,31]
[312728582,1706189486082,-295.23756517,0.00050958,31]
[312728583,1706189486094,-3780.86,0.00051699,15]
[312728584,1706189486105,-3780.86,0.00051699,15]
[312728585,1706189486116,-3780.86,0.00051699,15]
[312728586,1706189486125,-234246.36383539,0.00052868,30]
[312728587,1706189486138,-820.27735935,0.00052868,30]
[312728588,1706189486160,-1195.000022,0.00051699,15]
[312728589,1706189486175,-1921.87499979,0.00051699,15]
[312728590,1706189486202,-510.98056953,0.00051699,15]
[312728591,1706189486214,-153.00440868,0.00051699,15]
[312728592,1706189486224,-9741.22555128,0.00052868,30]
[312728593,1706189486288,-500.0,0.00049315,31]
[312728594,1706189486299,-1448.32,0.00049315,31]
[312728595,1706189486309,-500.0,0.00049315,31]
[312728596,1706189486319,-3780.86,0.00051699,15]
[312728597,1706189486329,-28738.05749349,0.00052868,30]
[312728598,1706189486350,-500.0,0.00049315,31]
[312728599,1706189486360,-1493.7,0.00052868,30]
[312728600,1706189486376,-4159.36600708,0.00052868,30]
[312728601,1706189486387,-14292.07396988,0.00052868,30]
[312728602,1706189486399,-463.19576526,0.00052868,30]
[312728603,1706189486411,-1978.69472269,0.00052868,30]
[312728604,1706189486424,-3090.63762206,0.00052868,30]
[312728605,1706189486435,-9994.34560963,0.00052868,30]
[312728606,1706189486502,-435.2938084,0.00049589,31]
[312728607,1706189486513,-64.7061916,0.00049589,31]
[312728608,1706189486524,-888.26021703,0.00052868,30]
[312728609,1706189486535,-4128.29423011,0.00052868,30]
[312728610,1706189486544,-4375.4761954,0.0005287,30]
[312728611,1706189486925,-410.94864852,0.000401,2]
[312728612,1706189486937,-1354.49069,0.000401,2]
[312728613,1706189486957,-475.41590491,0.000401,2]
[312728614,1706189486967,-292.31,0.00045973,2]
[312728615,1706189486976,-500.0,0.00049315,31]
[312728616,1706189486985,-500.0,0.00049315,31]
[312728617,1706189486995,-594.71261194,0.00049315,31]
[312728618,1706189487004,-750.0,0.00049315,120]
[312728619,1706189487013,-726.71,0.00049315,31]
[312728620,1706189487024,-1448.32,0.00049589,31]
[312728621,1706189487033,-500.0,0.00049589,31]
[312728622,1706189487042,-500.0,0.00049589,31]
[312728623,1706189487052,-500.0,0.00049589,31]
[312728624,1706189487061,-247.94536796,0.00049589,31]
[312728625,1706189487071,-500.0,0.00049863,31]
[312728626,1706189487079,-1448.32,0.00049863,31]
[312728627,1706189487089,-500.0,0.00049863,31]
[312728628,1706189487098,-500.0,0.00049863,31]
[312728629,1706189487107,-500.0,0.00049863,31]
[312728630,1706189487116,-915.55565661,0.0005,4]
[312728631,1706189487125,-500.0,0.00050136,31]
[312728632,1706189487135,-358.86972849,0.00050136,31]
[312728633,1706189487144,-500.0,0.00050136,31]
[312728634,1706189487153,-1448.32,0.00050136,31]
[312728635,1706189487162,-636.73029643,0.00050136,31]
[312728636,1706189487171,-500.0,0.0005041,31]
[312728637,1706189487180,-500.0,0.0005041,31]
[312728638,1706189487189,-1448.32,0.0005041,31]
[312728639,1706189487198,-500.0,0.00050684,31]
[312728640,1706189487207,-500.0,0.00050684,31]
[312728641,1706189487217,-1448.32,0.00050684,31]
[312728642,1706189487227,-500.0,0.00050958,31]
[312728643,1706189487236,-500.0,0.00050958,31]
[312728644,1706189487245,-1448.32,0.00050958,31]
[312728645,1706189487255,-160.35529708,0.00051232,31]
[312728646,1706189487266,-500.0,0.00051232,31]
[312728647,1706189487275,-1448.32,0.00051232,31]
[312728648,1706189487286,-500.0,0.00051506,31]
[312728649,1706189487295,-1448.32,0.00051506,31]
[312728650,1706189487305,-500.0,0.0005178,31]
[312728651,1706189487314,-1448.32,0.0005178,31]
[312728652,1706189487323,-500.0,0.00052054,31]
[312728653,1706189487333,-2000.0,0.00052328,60]
[312728654,1706189487343,-102157.48426808,0.0005287,30]
[312728655,1706189487353,-200.0,0.00052871,30]
[312728656,1706189487362,-1224.41,0.00052876,31]
[312728657,1706189487371,-262.16338056,0.00052876,31]
[312728658,1706189487380,-684.55,0.00052876,31]
[312728659,1706189487390,-500.0,0.00052876,31]
[312728660,1706189487399,-500.0,0.00052876,31]
[312728661,1706189487409,-480.85656698,0.00052876,31]
[312728662,1706189487418,-500.0,0.00052876,31]
[312728663,1706189487427,-500.0,0.00052876,31]
[312728664,1706189487436,-500.0,0.00052876,31]
[312728665,1706189487445,-591.91,0.00052876,31]
[312728666,1706189487454,-500.0,0.00052876,31]
[312728667,1706189487463,-500.0,0.00052876,31]
[312728668,1706189487472,-503.96,0.00052876,31]
[312728669,1706189487481,-500.0,0.00052876,31]
[312728670,1706189487492,-500.0,0.00052876,31]
[312728671,1706189487502,-598.82369106,0.00052876,31]
[312728672,1706189487511,-582.25051651,0.00052876,31]
[312728673,1706189487519,-500.0,0.00052876,31]
[312728674,1706189487529,-500.0,0.00052876,14]
[312728675,1706189487539,-504.11,0.00052876,31]
[312728676,1706189487550,-500.0,0.00052876,31]
[312728677,1706189487680,-500.0,0.00052876,31]
[312728678,1706189487690,-500.0,0.00052876,31]
[312728679,1706189487699,-500.0,0.00052876,31]
[312728680,1706189487710,-511.82,0.00052876,31]
[312728681,1706189487720,-578.99,0.00052876,31]
[312728682,1706189487729,-500.0,0.00052876,2]
[312728683,1706189487740,-662.95,0.00052876,31]
[312728684,1706189487750,-500.0,0.00052876,31]
[312728685,1706189487759,-500.0,0.00052876,31]
[312728686,1706189487769,-500.0,0.00052876,31]
[312728687,1706189487779,-385.44073686,0.00052876,31]
[312728688,1706189487788,-500.0,0.00052876,31]
[312728689,1706189487798,-500.0,0.00052876,31]
[312728690,1706189487807,-285.34,0.00052876,31]
[312728691,1706189487817,-500.0,0.00052876,31]
[312728692,1706189487826,-339.47606642,0.00052876,31]
[312728693,1706189487836,-706.68,0.00052876,31]
[312728694,1706189487846,-500.0,0.00052876,31]
[312728695,1706189487855,-500.0,0.00052876,31]
[312728696,1706189487864,-500.0,0.00052876,31]
[312728697,1706189487874,-511.95,0.00052876,31]
[312728698,1706189487883,-500.0,0.00052876,31]
[312728699,1706189487893,-500.0,0.00052876,31]
[312728700,1706189487902,-500.0,0.00052876,31]
[312728701,1706189487912,-500.0,0.00052876,31]
[312728702,1706189487921,-500.0,0.00052876,31]
[312728703,1706189487930,-500.0,0.00052876,31]
[312728704,1706189487940,-586.25,0.00052876,31]
[312728705,1706189487950,-291.50197995,0.00052876,31]
[312728706,1706189487964,-289.3952952,0.00052876,31]
[312728707,1706189487973,-488.26539284,0.00052876,31]
[312728708,1706189487982,-433.65932196,0.00052876,31]
[312728709,1706189487994,-66.34067804,0.00052876,31]
[312728710,1706189488004,-633.24932186,0.00052876,31]
[312728711,1706189488015,-214.64067814,0.00052876,31]
[312728712,1706189488025,-500.0,0.00052876,31]
[312728713,1706189488035,-847.27,0.00052876,31]
[312728714,1706189488044,-553.41,0.00052876,2]
[312728715,1706189488054,-500.0,0.00052876,31]
[312728716,1706189488064,-205.02108182,0.00052876,31]
[312728717,1706189488072,-552.54,0.00052876,31]
[312728718,1706189488082,-500.0,0.00052876,31]
[312728719,1706189488091,-500.0,0.00052876,31]
[312728720,1706189488102,-500.0,0.00052876,10]
[312728721,1706189488112,-533.04,0.00052876,31]
[312728722,1706189488121,-500.0,0.00052876,31]
[312728723,1706189488131,-500.0,0.00052876,31]
[312728724,1706189488140,-500.0,0.00052876,31]
[312728725,1706189488149,-1263.99,0.00052876,31]